[Event "Titled Tuesday Blitz July 25 Early 2023"]
[White "Koutlas, Nikolaos"]
[Black "Gholami Orimi, Mahdi"]
[WhiteFideId "25827138"]
[BlackFideId "12558486"]
[WhiteElo "2481"]
[BlackElo "2898"]
[Result "0-1"]
[Round "3"]
[TimeControl "180+2"]
[Date "2023.07.25"]
[WhiteClock "0:00:04"]
[BlackClock "0:00:22"]
[Board "78"]

1. Nf3 {[%clk 0:02:58]}  Nf6 {[%clk 0:02:56]} 2. g3 {[%clk 0:02:09]}  b5 {[%clk 0:02:47]} 3. Bg2 {[%clk 0:02:04]}  Bb7 {[%clk 0:02:46]} 4. O-O {[%clk 0:01:56]}  e6 {[%clk 0:02:46]} 5. a4 {[%clk 0:01:54]}  b4 {[%clk 0:02:46]} 6. a5 {[%clk 0:01:54]}  c5 {[%clk 0:02:45]} 7. d4 {[%clk 0:01:53]}  Na6 {[%clk 0:02:44]} 8. c3 {[%clk 0:01:52]}  cxd4 {[%clk 0:02:42]} 9. cxd4 {[%clk 0:01:49]}  Be7 {[%clk 0:02:42]} 10. Nbd2 {[%clk 0:01:48]}  O-O {[%clk 0:02:42]} 11. Re1 {[%clk 0:01:48]}  d5 {[%clk 0:02:41]} 12. Ne5 {[%clk 0:01:48]}  Rc8 {[%clk 0:02:32]} 13. Nb3 {[%clk 0:01:30]}  Nd7 {[%clk 0:02:28]} 14. Nd3 {[%clk 0:01:27]}  Bc6 {[%clk 0:02:27]} 15. Bf4 {[%clk 0:01:24]}  Bb5 {[%clk 0:02:25]} 16. e4 {[%clk 0:01:16]}  dxe4 {[%clk 0:02:25]} 17. Bxe4 {[%clk 0:01:11]}  Nf6 {[%clk 0:02:25]} 18. Bf3 {[%clk 0:01:09]}  Bc6 {[%clk 0:02:25]} 19. Ne5 {[%clk 0:00:52]}  Bxf3 {[%clk 0:02:23]} 20. Qxf3 {[%clk 0:00:52]}  Qd5 {[%clk 0:02:19]} 21. Rac1 {[%clk 0:00:47]}  Qxf3 {[%clk 0:02:18]} 22. Nxf3 {[%clk 0:00:46]}  Nd5 {[%clk 0:02:18]} 23. Be3 {[%clk 0:00:35]}  f6 {[%clk 0:02:16]} 24. Kf1 {[%clk 0:00:26]}  Kf7 {[%clk 0:02:14]} 25. Ke2 {[%clk 0:00:26]}  g5 {[%clk 0:02:03]} 26. h3 {[%clk 0:00:23]}  h5 {[%clk 0:02:03]} 27. Kd3 {[%clk 0:00:19]}  Nb8 {[%clk 0:01:58]} 28. Rxc8 {[%clk 0:00:18]}  Rxc8 {[%clk 0:01:57]} 29. Rc1 {[%clk 0:00:17]}  Rxc1 {[%clk 0:01:57]} 30. Bxc1 {[%clk 0:00:17]}  a6 {[%clk 0:01:55]} 31. Kc4 {[%clk 0:00:15]}  Nc6 {[%clk 0:01:55]} 32. Ne1 {[%clk 0:00:15]}  Bd8 {[%clk 0:00:54]} 33. Nd3 {[%clk 0:00:15]}  Nxa5+ {[%clk 0:00:48]} 34. Nxa5 {[%clk 0:00:14]}  Bxa5 {[%clk 0:00:48]} 35. Nc5 {[%clk 0:00:12]}  Nc7 {[%clk 0:00:35]} 36. Bd2 {[%clk 0:00:09]}  Bb6 {[%clk 0:00:33]} 37. Bxb4 {[%clk 0:00:09]}  g4 {[%clk 0:00:31]} 38. h4 {[%clk 0:00:06]}  Ke8 {[%clk 0:00:28]} 39. Nd3 {[%clk 0:00:06]}  Nd5 {[%clk 0:00:23]} 40. Bc5 {[%clk 0:00:05]}  Ba5 {[%clk 0:00:22]} 41. b4 {[%clk 0:00:05]}  Bc7 {[%clk 0:00:23]} 42. Ne1 {[%clk 0:00:02]}  f5 {[%clk 0:00:22]} 43. Ng2 {[%clk 0:00:02]}  Kd7 {[%clk 0:00:18]} 44. Ne3 {[%clk 0:00:02]}  Nxe3+ {[%clk 0:00:18]} 45. fxe3 {[%clk 0:00:02]}  Bxg3 {[%clk 0:00:18]} 46. b5 {[%clk 0:00:03]}  axb5+ {[%clk 0:00:19]} 47. Kxb5 {[%clk 0:00:03]}  Bxh4 {[%clk 0:00:19]} 48. Kb6 {[%clk 0:00:04]}  Bf2 {[%clk 0:00:19]} 49. e4 {[%clk 0:00:04]}  fxe4 {[%clk 0:00:20]} 50. Kb7 {[%clk 0:00:04]}  g3 {[%clk 0:00:20]} 51. d5 {[%clk 0:00:05]}  Bxc5 {[%clk 0:00:21]} 52. dxe6+ {[%clk 0:00:04]}  Kxe6 {[%clk 0:00:22]} 0-1


[Site "https://www.chess.com"]

[Event "Titled Tuesday Blitz July 25 Early 2023"]
[White "Onufrienko, Vladislav"]
[Black "Molina, Roberto Junio Brito"]
[WhiteFideId "13804332"]
[BlackFideId "2109450"]
[WhiteElo "2478"]
[BlackElo "2885"]
[Result "1/2-1/2"]
[Round "3"]
[TimeControl "180+2"]
[Date "2023.07.25"]
[WhiteClock "0:00:07"]
[BlackClock "0:00:21"]
[Board "79"]

1. e4 {[%clk 0:03:00]}  c6 {[%clk 0:02:59]} 2. d4 {[%clk 0:03:00]}  d5 {[%clk 0:03:00]} 3. e5 {[%clk 0:03:01]}  Bf5 {[%clk 0:02:59]} 4. Nf3 {[%clk 0:03:02]}  e6 {[%clk 0:02:59]} 5. Be2 {[%clk 0:03:03]}  Nd7 {[%clk 0:02:59]} 6. O-O {[%clk 0:03:03]}  Bg6 {[%clk 0:02:59]} 7. Be3 {[%clk 0:03:02]}  Ne7 {[%clk 0:03:00]} 8. Nbd2 {[%clk 0:02:58]}  Nf5 {[%clk 0:03:00]} 9. c4 {[%clk 0:02:58]}  dxc4 {[%clk 0:03:00]} 10. Nxc4 {[%clk 0:02:58]}  Be7 {[%clk 0:02:59]} 11. Bd3 {[%clk 0:02:55]}  O-O {[%clk 0:02:56]} 12. Rc1 {[%clk 0:02:54]}  Nb6 {[%clk 0:02:56]} 13. Na5 {[%clk 0:02:41]}  Nxe3 {[%clk 0:02:43]} 14. fxe3 {[%clk 0:02:41]}  Nd5 {[%clk 0:02:43]} 15. Bxg6 {[%clk 0:01:54]}  hxg6 {[%clk 0:02:26]} 16. Nxb7 {[%clk 0:01:50]}  Qb6 {[%clk 0:02:24]} 17. Qb3 {[%clk 0:01:43]}  Qxb3 {[%clk 0:01:59]} 18. axb3 {[%clk 0:01:44]}  Nxe3 {[%clk 0:01:57]} 19. Rf2 {[%clk 0:01:20]}  Rfc8 {[%clk 0:01:49]} 20. Re2 {[%clk 0:01:00]}  Nd5 {[%clk 0:01:46]} 21. Rec2 {[%clk 0:01:00]}  Nb4 {[%clk 0:01:21]} 22. Rc4 {[%clk 0:01:00]}  a5 {[%clk 0:01:15]} 23. Ne1 {[%clk 0:00:29]}  Rcb8 {[%clk 0:01:08]} 24. Nc5 {[%clk 0:00:27]}  Bxc5 {[%clk 0:01:06]} 25. Rxc5 {[%clk 0:00:28]}  a4 {[%clk 0:00:58]} 26. bxa4 {[%clk 0:00:19]}  Rxa4 {[%clk 0:00:58]} 27. b3 {[%clk 0:00:09]}  Ra3 {[%clk 0:00:52]} 28. R1c3 {[%clk 0:00:07]}  Nd5 {[%clk 0:00:35]} 29. Rf3 {[%clk 0:00:05]}  Ne7 {[%clk 0:00:34]} 30. Rcc3 {[%clk 0:00:04]}  Ra1 {[%clk 0:00:30]} 31. Kf2 {[%clk 0:00:04]}  Rd8 {[%clk 0:00:30]} 32. Rfd3 {[%clk 0:00:04]}  Ra6 {[%clk 0:00:29]} 33. Rd2 {[%clk 0:00:04]}  Rb6 {[%clk 0:00:29]} 34. Rcd3 {[%clk 0:00:04]}  Rdb8 {[%clk 0:00:29]} 35. Rb2 {[%clk 0:00:02]}  Rd8 {[%clk 0:00:26]} 36. Nf3 {[%clk 0:00:02]}  Rb4 {[%clk 0:00:23]} 37. Rbd2 {[%clk 0:00:01]}  Rdb8 {[%clk 0:00:22]} 38. Rb2 {[%clk 0:00:02]}  Nd5 {[%clk 0:00:21]} 39. Rdd2 {[%clk 0:00:02]}  Rxb3 {[%clk 0:00:20]} 40. Rxb3 {[%clk 0:00:03]}  Rxb3 {[%clk 0:00:20]} 41. Rc2 {[%clk 0:00:04]}  Rb6 {[%clk 0:00:20]} 42. Ng5 {[%clk 0:00:04]}  Kf8 {[%clk 0:00:20]} 43. Ne4 {[%clk 0:00:04]}  Ke7 {[%clk 0:00:19]} 44. Nd6 {[%clk 0:00:04]}  Ra6 {[%clk 0:00:18]} 45. Nc8+ {[%clk 0:00:05]}  Kd7 {[%clk 0:00:18]} 46. Nd6 {[%clk 0:00:05]}  f6 {[%clk 0:00:18]} 47. Ne4 {[%clk 0:00:06]}  Rb6 {[%clk 0:00:17]} 48. Nc5+ {[%clk 0:00:06]}  Ke7 {[%clk 0:00:18]} 49. Ne4 {[%clk 0:00:07]}  fxe5 {[%clk 0:00:17]} 50. dxe5 {[%clk 0:00:08]}  Nb4 {[%clk 0:00:16]} 51. Rc4 {[%clk 0:00:08]}  Nd3+ {[%clk 0:00:16]} 52. Ke3 {[%clk 0:00:08]}  Nxe5 {[%clk 0:00:17]} 53. Rc5 {[%clk 0:00:08]}  Nd7 {[%clk 0:00:16]} 54. Rg5 {[%clk 0:00:08]}  Rb3+ {[%clk 0:00:15]} 55. Kf4 {[%clk 0:00:08]}  e5+ {[%clk 0:00:14]} 56. Kg4 {[%clk 0:00:08]}  Rb4 {[%clk 0:00:14]} 57. Kf3 {[%clk 0:00:08]}  Rb3+ {[%clk 0:00:15]} 58. Ke2 {[%clk 0:00:09]}  Nf6 {[%clk 0:00:14]} 59. Nc5 {[%clk 0:00:07]}  Kf7 {[%clk 0:00:14]} 60. Nxb3 {[%clk 0:00:07]}  Ne4 {[%clk 0:00:14]} 61. Rg4 {[%clk 0:00:06]}  Nc3+ {[%clk 0:00:13]} 62. Kd3 {[%clk 0:00:07]}  Nd5 {[%clk 0:00:14]} 63. Ra4 {[%clk 0:00:06]}  Ke6 {[%clk 0:00:14]} 64. Ra8 {[%clk 0:00:05]}  Nf4+ {[%clk 0:00:13]} 65. Ke4 {[%clk 0:00:04]}  Nxg2 {[%clk 0:00:14]} 66. Re8+ {[%clk 0:00:04]}  Kf6 {[%clk 0:00:15]} 67. Rxe5 {[%clk 0:00:03]}  Nh4 {[%clk 0:00:16]} 68. Ra5 {[%clk 0:00:03]}  Nf5 {[%clk 0:00:16]} 69. Nd4 {[%clk 0:00:03]}  Nd6+ {[%clk 0:00:16]} 70. Kd3 {[%clk 0:00:03]}  Nf7 {[%clk 0:00:16]} 71. Ra6 {[%clk 0:00:03]}  Kg5 {[%clk 0:00:17]} 72. Rxc6 {[%clk 0:00:03]}  Ne5+ {[%clk 0:00:17]} 73. Ke4 {[%clk 0:00:03]}  Nxc6 {[%clk 0:00:18]} 74. Nxc6 {[%clk 0:00:04]}  Kg4 {[%clk 0:00:19]} 75. Ne5+ {[%clk 0:00:03]}  Kh3 {[%clk 0:00:19]} 76. Nxg6 {[%clk 0:00:04]}  Kxh2 {[%clk 0:00:20]} 77. Kf5 {[%clk 0:00:04]}  Kh3 {[%clk 0:00:20]} 78. Ke6 {[%clk 0:00:05]}  Kg4 {[%clk 0:00:21]} 79. Kf7 {[%clk 0:00:06]}  Kg5 {[%clk 0:00:21]} 80. Kxg7 {[%clk 0:00:07]} 1/2-1/2


[Site "https://www.chess.com"]

[Event "Titled Tuesday Blitz July 25 Early 2023"]
[White "UNSTOPPABLE_LEGEND"]
[Black "Sychev, Klementy"]
[BlackFideId "4114060"]
[WhiteElo "2472"]
[BlackElo "2833"]
[Result "0-1"]
[Round "3"]
[TimeControl "180+2"]
[Date "2023.07.25"]
[WhiteClock "0:02:15"]
[BlackClock "0:01:51"]
[Board "81"]

1. Nf3 {[%clk 0:03:00]}  Nf6 {[%clk 0:02:59]} 2. b3 {[%clk 0:03:01]}  d5 {[%clk 0:02:59]} 3. Bb2 {[%clk 0:03:02]}  Bf5 {[%clk 0:02:58]} 4. e3 {[%clk 0:03:00]}  e6 {[%clk 0:02:57]} 5. c4 {[%clk 0:03:00]}  h6 {[%clk 0:02:57]} 6. Nc3 {[%clk 0:03:00]}  c6 {[%clk 0:02:57]} 7. Be2 {[%clk 0:02:59]}  Nbd7 {[%clk 0:02:57]} 8. O-O {[%clk 0:02:59]}  Bd6 {[%clk 0:02:58]} 9. Rc1 {[%clk 0:02:59]}  O-O {[%clk 0:02:57]} 10. d3 {[%clk 0:03:00]}  Rc8 {[%clk 0:02:55]} 11. e4 {[%clk 0:02:56]}  Bh7 {[%clk 0:02:54]} 12. cxd5 {[%clk 0:02:46]}  exd5 {[%clk 0:02:52]} 13. exd5 {[%clk 0:02:42]}  Nxd5 {[%clk 0:02:51]} 14. Nxd5 {[%clk 0:02:33]}  cxd5 {[%clk 0:02:51]} 15. Qd2 {[%clk 0:02:32]}  Re8 {[%clk 0:02:45]} 16. Nd4 {[%clk 0:02:30]}  a6 {[%clk 0:02:28]} 17. Bf3 {[%clk 0:02:26]}  Rxc1 {[%clk 0:02:13]} 18. Rxc1 {[%clk 0:02:24]}  Ne5 {[%clk 0:02:13]} 19. Bxd5 {[%clk 0:02:21]}  Nxd3 {[%clk 0:02:12]} 20. Rd1 {[%clk 0:02:15]}  Bb4 {[%clk 0:01:51]} 0-1


[Site "https://www.chess.com"]

[Event "Titled Tuesday Blitz July 25 Early 2023"]
[White "Tifferet, Shaked"]
[Black "Kaasen, Tor Fredrik"]
[WhiteFideId "2811529"]
[BlackFideId "1516647"]
[WhiteElo "2470"]
[BlackElo "2824"]
[Result "0-1"]
[Round "3"]
[TimeControl "180+2"]
[Date "2023.07.25"]
[WhiteClock "0:00:04"]
[BlackClock "0:00:17"]
[Board "82"]

1. d4 {[%clk 0:03:00]}  Nf6 {[%clk 0:02:59]} 2. Nf3 {[%clk 0:03:00]}  g6 {[%clk 0:03:00]} 3. Bf4 {[%clk 0:03:00]}  Bg7 {[%clk 0:03:00]} 4. Nbd2 {[%clk 0:03:01]}  O-O {[%clk 0:02:58]} 5. e4 {[%clk 0:03:01]}  d5 {[%clk 0:02:57]} 6. e5 {[%clk 0:03:01]}  Ne4 {[%clk 0:02:58]} 7. Be2 {[%clk 0:02:59]}  c5 {[%clk 0:02:58]} 8. c3 {[%clk 0:02:59]}  Nc6 {[%clk 0:02:58]} 9. O-O {[%clk 0:02:59]}  Bg4 {[%clk 0:02:52]} 10. h3 {[%clk 0:02:49]}  Bxf3 {[%clk 0:02:49]} 11. Nxf3 {[%clk 0:02:42]}  Qb6 {[%clk 0:02:46]} 12. Qb3 {[%clk 0:02:33]}  Qxb3 {[%clk 0:02:36]} 13. axb3 {[%clk 0:02:34]}  cxd4 {[%clk 0:02:37]} 14. cxd4 {[%clk 0:02:34]}  Rfc8 {[%clk 0:02:35]} 15. Rfc1 {[%clk 0:02:30]}  a6 {[%clk 0:02:33]} 16. Be3 {[%clk 0:02:22]}  Nb4 {[%clk 0:02:29]} 17. Ne1 {[%clk 0:02:21]}  f6 {[%clk 0:02:15]} 18. f3 {[%clk 0:02:20]}  Ng3 {[%clk 0:02:14]} 19. Kf2 {[%clk 0:02:04]}  Nxe2 {[%clk 0:02:12]} 20. Kxe2 {[%clk 0:02:05]}  fxe5 {[%clk 0:02:12]} 21. Nd3 {[%clk 0:01:53]}  Nc2 {[%clk 0:02:08]} 22. Ra5 {[%clk 0:01:44]}  exd4 {[%clk 0:02:02]} 23. Bd2 {[%clk 0:01:36]}  e6 {[%clk 0:01:53]} 24. b4 {[%clk 0:01:34]}  Ne3 {[%clk 0:01:50]} 25. Bxe3 {[%clk 0:01:26]}  dxe3 {[%clk 0:01:51]} 26. Rxc8+ {[%clk 0:01:26]}  Rxc8 {[%clk 0:01:51]} 27. Kxe3 {[%clk 0:01:21]}  Rc2 {[%clk 0:01:23]} 28. b5 {[%clk 0:01:12]}  axb5 {[%clk 0:01:15]} 29. Rxb5 {[%clk 0:01:12]}  Rxg2 {[%clk 0:01:07]} 30. Rxb7 {[%clk 0:01:12]}  e5 {[%clk 0:01:05]} 31. Rb8+ {[%clk 0:00:32]}  Kf7 {[%clk 0:01:05]} 32. Rb7+ {[%clk 0:00:32]}  Kf8 {[%clk 0:01:04]} 33. Nc5 {[%clk 0:00:27]}  Bh6+ {[%clk 0:00:52]} 34. Kd3 {[%clk 0:00:26]}  Rf2 {[%clk 0:00:38]} 35. Nd7+ {[%clk 0:00:25]}  Ke7 {[%clk 0:00:30]} 36. Nxe5+ {[%clk 0:00:26]}  Ke6 {[%clk 0:00:29]} 37. Nc6 {[%clk 0:00:15]}  Rxf3+ {[%clk 0:00:28]} 38. Ke2 {[%clk 0:00:15]}  Re3+ {[%clk 0:00:25]} 39. Kf2 {[%clk 0:00:15]}  Rxh3 {[%clk 0:00:26]} 40. Nd4+ {[%clk 0:00:10]}  Kd6 {[%clk 0:00:24]} 41. Nf3 {[%clk 0:00:10]}  Bf4 {[%clk 0:00:22]} 42. b4 {[%clk 0:00:10]}  g5 {[%clk 0:00:22]} 43. Kg2 {[%clk 0:00:06]}  g4 {[%clk 0:00:20]} 44. Nd4 {[%clk 0:00:07]}  Rh2+ {[%clk 0:00:20]} 45. Kf1 {[%clk 0:00:05]}  Rd2 {[%clk 0:00:19]} 46. Nf5+ {[%clk 0:00:03]}  Ke5 {[%clk 0:00:19]} 47. Ng7 {[%clk 0:00:03]}  g3 {[%clk 0:00:18]} 48. Re7+ {[%clk 0:00:04]}  Kf6 {[%clk 0:00:16]} 49. Nh5+ {[%clk 0:00:03]}  Kxe7 {[%clk 0:00:16]} 50. Nxf4 {[%clk 0:00:04]}  Rf2+ {[%clk 0:00:16]} 51. Kg1 {[%clk 0:00:04]}  Rxf4 {[%clk 0:00:17]} 52. Kg2 {[%clk 0:00:04]}  Rxb4 {[%clk 0:00:17]} 0-1


[Site "https://www.chess.com"]

[Event "Titled Tuesday Blitz July 25 Early 2023"]
[White "Fiorito, Joaquin"]
[Black "ExchangeAB"]
[WhiteFideId "180173"]
[WhiteElo "2782"]
[BlackElo "2465"]
[Result "1-0"]
[Round "3"]
[TimeControl "180+2"]
[Date "2023.07.25"]
[WhiteClock "0:00:33"]
[BlackClock "0:00:09"]
[Board "86"]

1. d4 {[%clk 0:03:00]}  Nf6 {[%clk 0:02:58]} 2. c4 {[%clk 0:03:00]}  c6 {[%clk 0:02:58]} 3. Nc3 {[%clk 0:02:58]}  d5 {[%clk 0:02:59]} 4. Nf3 {[%clk 0:02:58]}  e6 {[%clk 0:02:59]} 5. Bg5 {[%clk 0:02:57]}  Nbd7 {[%clk 0:02:58]} 6. e3 {[%clk 0:02:57]}  Qa5 {[%clk 0:02:58]} 7. cxd5 {[%clk 0:02:56]}  exd5 {[%clk 0:02:54]} 8. Nd2 {[%clk 0:02:43]}  Bd6 {[%clk 0:02:47]} 9. Bd3 {[%clk 0:02:43]}  h6 {[%clk 0:02:46]} 10. Bh4 {[%clk 0:02:42]}  O-O {[%clk 0:02:41]} 11. O-O {[%clk 0:02:39]}  Qd8 {[%clk 0:02:36]} 12. Nf3 {[%clk 0:02:33]}  Qe8 {[%clk 0:02:31]} 13. Qc2 {[%clk 0:02:32]}  Bb4 {[%clk 0:02:11]} 14. Rae1 {[%clk 0:02:30]}  Bxc3 {[%clk 0:02:11]} 15. bxc3 {[%clk 0:02:27]}  Ne4 {[%clk 0:02:10]} 16. Nd2 {[%clk 0:02:24]}  f5 {[%clk 0:01:43]} 17. f3 {[%clk 0:02:19]}  Nxd2 {[%clk 0:01:43]} 18. Qxd2 {[%clk 0:02:20]}  Nf6 {[%clk 0:01:42]} 19. Qc2 {[%clk 0:02:16]}  Qh5 {[%clk 0:01:40]} 20. Bg3 {[%clk 0:02:14]}  Bd7 {[%clk 0:01:38]} 21. a4 {[%clk 0:02:09]}  b5 {[%clk 0:01:34]} 22. Bd6 {[%clk 0:02:03]}  Rf7 {[%clk 0:01:33]} 23. axb5 {[%clk 0:01:54]}  cxb5 {[%clk 0:01:33]} 24. Qb3 {[%clk 0:01:50]}  a6 {[%clk 0:01:21]} 25. Be5 {[%clk 0:01:50]}  Bc6 {[%clk 0:01:12]} 26. Ra1 {[%clk 0:01:47]}  Nd7 {[%clk 0:00:57]} 27. Bc7 {[%clk 0:01:22]}  Nc5 {[%clk 0:00:48]} 28. dxc5 {[%clk 0:01:20]}  Rxc7 {[%clk 0:00:48]} 29. Qb4 {[%clk 0:01:04]}  Qf7 {[%clk 0:00:47]} 30. Ra5 {[%clk 0:01:00]}  Qe6 {[%clk 0:00:44]} 31. Qf4 {[%clk 0:00:58]}  Re7 {[%clk 0:00:42]} 32. Re1 {[%clk 0:00:56]}  Rf7 {[%clk 0:00:32]} 33. Rea1 {[%clk 0:00:52]}  g5 {[%clk 0:00:30]} 34. Qd4 {[%clk 0:00:51]}  Bb7 {[%clk 0:00:26]} 35. Bxb5 {[%clk 0:00:49]}  Re7 {[%clk 0:00:17]} 36. Kf2 {[%clk 0:00:45]}  f4 {[%clk 0:00:16]} 37. c6 {[%clk 0:00:37]}  fxe3+ {[%clk 0:00:14]} 38. Ke1 {[%clk 0:00:34]}  Bxc6 {[%clk 0:00:12]} 39. Rxa6 {[%clk 0:00:34]}  Rxa6 {[%clk 0:00:11]} 40. Rxa6 {[%clk 0:00:34]}  Bxb5 {[%clk 0:00:08]} 41. Rxe6 {[%clk 0:00:34]}  Rxe6 {[%clk 0:00:09]} 42. Qxd5 {[%clk 0:00:33]} 1-0


[Site "https://www.chess.com"]

[Event "Titled Tuesday Blitz July 25 Early 2023"]
[White "Urbina Perez, Juan Antonio"]
[Black "Prohaszka, Peter"]
[WhiteFideId "2217368"]
[BlackFideId "726265"]
[WhiteElo "2456"]
[BlackElo "2752"]
[Result "1-0"]
[Round "3"]
[TimeControl "180+2"]
[Date "2023.07.25"]
[WhiteClock "0:00:10"]
[BlackClock "0:00:01"]
[Board "91"]

1. e4 {[%clk 0:03:00]}  c6 {[%clk 0:02:59]} 2. d4 {[%clk 0:02:59]}  d5 {[%clk 0:03:00]} 3. Nd2 {[%clk 0:02:59]}  dxe4 {[%clk 0:03:00]} 4. Nxe4 {[%clk 0:03:00]}  Bf5 {[%clk 0:03:00]} 5. Ng3 {[%clk 0:03:00]}  Bg6 {[%clk 0:03:01]} 6. Nh3 {[%clk 0:03:01]}  e6 {[%clk 0:03:00]} 7. Nf4 {[%clk 0:03:01]}  Qh4 {[%clk 0:02:59]} 8. c3 {[%clk 0:02:52]}  Bd6 {[%clk 0:02:58]} 9. Qf3 {[%clk 0:02:52]}  Nf6 {[%clk 0:02:56]} 10. Bc4 {[%clk 0:02:48]}  Nbd7 {[%clk 0:02:55]} 11. Bd2 {[%clk 0:02:46]}  e5 {[%clk 0:02:45]} 12. Nxg6 {[%clk 0:02:38]}  hxg6 {[%clk 0:02:44]} 13. Be3 {[%clk 0:02:15]}  e4 {[%clk 0:02:04]} 14. Qe2 {[%clk 0:02:06]}  Nb6 {[%clk 0:02:04]} 15. O-O-O {[%clk 0:02:00]}  Nxc4 {[%clk 0:01:50]} 16. Qxc4 {[%clk 0:02:01]}  Nd5 {[%clk 0:01:50]} 17. Qe2 {[%clk 0:01:43]}  O-O-O {[%clk 0:01:42]} 18. c4 {[%clk 0:01:37]}  Nxe3 {[%clk 0:01:34]} 19. fxe3 {[%clk 0:01:26]}  Bxg3 {[%clk 0:01:34]} 20. hxg3 {[%clk 0:01:26]}  Qxg3 {[%clk 0:01:33]} 21. Rdf1 {[%clk 0:01:20]}  f5 {[%clk 0:01:25]} 22. Kd2 {[%clk 0:01:16]}  Qc7 {[%clk 0:01:14]} 23. Kc2 {[%clk 0:01:13]}  Rh2 {[%clk 0:01:08]} 24. Rxh2 {[%clk 0:01:05]}  Qxh2 {[%clk 0:01:09]} 25. a3 {[%clk 0:01:04]}  Rh8 {[%clk 0:01:05]} 26. Kb1 {[%clk 0:01:00]}  Qg3 {[%clk 0:01:04]} 27. d5 {[%clk 0:01:00]}  c5 {[%clk 0:00:59]} 28. Rd1 {[%clk 0:00:53]}  Rh2 {[%clk 0:00:51]} 29. Rd2 {[%clk 0:00:53]}  Rh1+ {[%clk 0:00:51]} 30. Ka2 {[%clk 0:00:53]}  Qe1 {[%clk 0:00:48]} 31. Qf2 {[%clk 0:00:42]}  Qxf2 {[%clk 0:00:42]} 32. Rxf2 {[%clk 0:00:42]}  Re1 {[%clk 0:00:32]} 33. g4 {[%clk 0:00:42]}  Rxe3 {[%clk 0:00:32]} 34. gxf5 {[%clk 0:00:42]}  Rf3 {[%clk 0:00:33]} 35. Rg2 {[%clk 0:00:40]}  gxf5 {[%clk 0:00:19]} 36. Rxg7 {[%clk 0:00:41]}  f4 {[%clk 0:00:14]} 37. d6 {[%clk 0:00:40]}  Rd3 {[%clk 0:00:13]} 38. Rc7+ {[%clk 0:00:39]}  Kd8 {[%clk 0:00:14]} 39. Rxc5 {[%clk 0:00:34]}  Rxd6 {[%clk 0:00:10]} 40. Re5 {[%clk 0:00:34]}  e3 {[%clk 0:00:10]} 41. Re4 {[%clk 0:00:34]}  Rd1 {[%clk 0:00:09]} 42. Kb3 {[%clk 0:00:32]}  Rf1 {[%clk 0:00:07]} 43. Kc2 {[%clk 0:00:29]}  Rf2+ {[%clk 0:00:07]} 44. Kd3 {[%clk 0:00:29]}  Kd7 {[%clk 0:00:05]} 45. b4 {[%clk 0:00:29]}  Kd6 {[%clk 0:00:05]} 46. Re8 {[%clk 0:00:26]}  Rd2+ {[%clk 0:00:04]} 47. Kc3 {[%clk 0:00:25]}  Rf2 {[%clk 0:00:02]} 48. Kd3 {[%clk 0:00:25]}  Rf1 {[%clk 0:00:02]} 49. a4 {[%clk 0:00:21]}  Kd7 {[%clk 0:00:02]} 50. Re4 {[%clk 0:00:21]}  b6 {[%clk 0:00:03]} 51. Re5 {[%clk 0:00:18]}  Kd6 {[%clk 0:00:03]} 52. Re8 {[%clk 0:00:18]}  a5 {[%clk 0:00:03]} 53. c5+ {[%clk 0:00:15]}  bxc5 {[%clk 0:00:03]} 54. bxa5 {[%clk 0:00:16]}  Kc7 {[%clk 0:00:04]} 55. Re6 {[%clk 0:00:14]}  Kb7 {[%clk 0:00:04]} 56. Re5 {[%clk 0:00:11]}  Rf2 {[%clk 0:00:01]} 57. Re6 {[%clk 0:00:10]} 1-0


[Site "https://www.chess.com"]

[Event "Titled Tuesday Blitz July 25 Early 2023"]
[White "Matinian, Nikita"]
[Black "Herzog2012"]
[WhiteFideId "24129100"]
[WhiteElo "2735"]
[BlackElo "2450"]
[Result "1-0"]
[Round "3"]
[TimeControl "180+2"]
[Date "2023.07.25"]
[WhiteClock "0:01:03"]
[BlackClock "0:00:13"]
[Board "94"]

1. e4 {[%clk 0:02:57]}  c5 {[%clk 0:02:59]} 2. Nf3 {[%clk 0:02:58]}  Nc6 {[%clk 0:02:58]} 3. Bb5 {[%clk 0:02:57]}  g6 {[%clk 0:02:58]} 4. O-O {[%clk 0:02:56]}  Bg7 {[%clk 0:02:57]} 5. d3 {[%clk 0:02:57]}  e5 {[%clk 0:02:41]} 6. a3 {[%clk 0:02:56]}  Nge7 {[%clk 0:02:40]} 7. b4 {[%clk 0:02:54]}  cxb4 {[%clk 0:02:40]} 8. axb4 {[%clk 0:02:54]}  O-O {[%clk 0:02:39]} 9. c3 {[%clk 0:02:40]}  d5 {[%clk 0:02:28]} 10. Nbd2 {[%clk 0:02:33]}  a6 {[%clk 0:01:48]} 11. Re1 {[%clk 0:02:27]}  Rb8 {[%clk 0:01:45]} 12. Bxc6 {[%clk 0:02:22]}  Nxc6 {[%clk 0:01:43]} 13. Bb2 {[%clk 0:02:08]}  f6 {[%clk 0:01:16]} 14. exd5 {[%clk 0:01:59]}  Qxd5 {[%clk 0:01:15]} 15. Ne4 {[%clk 0:01:59]}  Rd8 {[%clk 0:01:10]} 16. Nc5 {[%clk 0:01:49]}  a5 {[%clk 0:00:45]} 17. Qa4 {[%clk 0:01:21]}  b5 {[%clk 0:00:25]} 18. Qa3 {[%clk 0:01:19]}  axb4 {[%clk 0:00:25]} 19. cxb4 {[%clk 0:01:20]}  Bg4 {[%clk 0:00:26]} 20. Nd2 {[%clk 0:01:18]}  Ne7 {[%clk 0:00:20]} 21. d4 {[%clk 0:01:13]}  Ra8 {[%clk 0:00:18]} 22. Qg3 {[%clk 0:01:10]}  f5 {[%clk 0:00:17]} 23. Rxa8 {[%clk 0:01:08]}  Qxa8 {[%clk 0:00:14]} 24. h3 {[%clk 0:01:08]}  Bh5 {[%clk 0:00:13]} 25. Ne6 {[%clk 0:01:03]} 1-0


[Site "https://www.chess.com"]

[Event "Titled Tuesday Blitz July 25 Early 2023"]
[White "Devaev, Alexander"]
[Black "Goltsev, Dmitry"]
[WhiteFideId "4169395"]
[BlackFideId "24176710"]
[WhiteElo "2447"]
[BlackElo "2720"]
[Result "0-1"]
[Round "3"]
[TimeControl "180+2"]
[Date "2023.07.25"]
[WhiteClock "0:00:17"]
[BlackClock "0:01:08"]
[Board "96"]

1. d4 {[%clk 0:02:59]}  Nf6 {[%clk 0:03:00]} 2. c4 {[%clk 0:02:59]}  e6 {[%clk 0:02:58]} 3. Nf3 {[%clk 0:03:00]}  Bb4+ {[%clk 0:02:56]} 4. Bd2 {[%clk 0:03:00]}  Be7 {[%clk 0:02:55]} 5. Nc3 {[%clk 0:03:00]}  b6 {[%clk 0:02:55]} 6. Qc2 {[%clk 0:03:00]}  Bb7 {[%clk 0:02:55]} 7. e4 {[%clk 0:03:00]}  d6 {[%clk 0:02:56]} 8. Bd3 {[%clk 0:03:00]}  Nc6 {[%clk 0:02:54]} 9. a3 {[%clk 0:02:59]}  e5 {[%clk 0:02:54]} 10. d5 {[%clk 0:02:59]}  Nb8 {[%clk 0:02:54]} 11. h3 {[%clk 0:02:53]}  a5 {[%clk 0:02:53]} 12. b3 {[%clk 0:02:52]}  Na6 {[%clk 0:02:53]} 13. Qd1 {[%clk 0:02:28]}  Nc5 {[%clk 0:02:50]} 14. Bc2 {[%clk 0:02:29]}  O-O {[%clk 0:02:49]} 15. b4 {[%clk 0:02:22]}  axb4 {[%clk 0:02:50]} 16. axb4 {[%clk 0:02:22]}  Rxa1 {[%clk 0:02:48]} 17. Qxa1 {[%clk 0:02:22]}  Na6 {[%clk 0:02:48]} 18. Qb2 {[%clk 0:02:22]}  Nh5 {[%clk 0:02:45]} 19. Bd3 {[%clk 0:02:22]}  Nf4 {[%clk 0:02:44]} 20. Bf1 {[%clk 0:02:22]}  f5 {[%clk 0:02:39]} 21. g3 {[%clk 0:02:06]}  fxe4 {[%clk 0:02:39]} 22. Nxe4 {[%clk 0:02:00]}  Nxd5 {[%clk 0:02:39]} 23. Qb1 {[%clk 0:01:14]}  Ndxb4 {[%clk 0:02:32]} 24. Neg5 {[%clk 0:01:13]}  e4 {[%clk 0:02:22]} 25. Nxe4 {[%clk 0:01:07]}  Rxf3 {[%clk 0:02:20]} 26. Bg2 {[%clk 0:01:08]}  Bxe4 {[%clk 0:01:53]} 27. Qxe4 {[%clk 0:01:07]}  Nd3+ {[%clk 0:01:53]} 28. Ke2 {[%clk 0:01:01]}  Rxf2+ {[%clk 0:01:53]} 29. Kd1 {[%clk 0:01:00]}  Nac5 {[%clk 0:01:45]} 30. Qd5+ {[%clk 0:00:57]}  Kh8 {[%clk 0:01:45]} 31. Be3 {[%clk 0:00:19]}  Ra2 {[%clk 0:01:13]} 32. Rf1 {[%clk 0:00:19]}  Qe8 {[%clk 0:01:08]} 33. Bd4 {[%clk 0:00:17]}  Qa4# {[%clk 0:01:08]} 0-1


[Site "https://www.chess.com"]